[Event "MČR juniorů a juniorek v rapid šachu 2024"]
[Site "Hotel Fit Fun, Harrachov, Czech Republic"]
[Date "2024.09.21"]
[Round "2.2"]
[White "Koranda Kosma"]
[Black "Steinbauer Sebastian"]
[Result "0-1"]
[TimeControl "20+5"]
[WhiteFideId "23772948"]
[BlackFideId "399272"]
[WhiteElo "1884"]
[BlackElo "2062"]

1. e4 {[%clk 00:20:09]} e5 {[%clk 00:20:09]} {[%emt 00:00:02]} 2. Nf3 {[%clk
00:20:13]} {[%emt 00:00:01]} Nf6 {[%clk 00:20:13]} 3. Nxe5 {[%clk 00:20:15]}
{[%emt 00:00:03]} d6 {[%clk 00:20:12]} {[%emt 00:00:07]} 4. Nf3 {[%clk
00:20:17]} {[%emt 00:00:02]} Nxe4 {[%clk 00:20:16]} {[%emt 00:00:02]} 5. d4
{[%clk 00:20:19]} {[%emt 00:00:03]} d5 {[%clk 00:20:20]} 6. Bd3 {[%clk
00:20:11]} {[%emt 00:00:13]} Bg4 {[%clk 00:20:22]} {[%emt 00:00:02]} 7. c4
{[%clk 00:19:34]} {[%emt 00:00:42]} Bb4+ {[%clk 00:19:52]} {[%emt 00:00:36]} 8.
Nbd2 {[%clk 00:18:04]} {[%emt 00:01:35]} Nxd2 {[%clk 00:19:01]} {[%emt
00:00:55]} 9. Qa4+ {[%clk 00:17:22]} {[%emt 00:00:47]} Nc6 {[%clk 00:18:57]}
{[%emt 00:00:09]} 10. Bxd2 {[%clk 00:16:43]} {[%emt 00:00:44]} Bxd2+ {[%clk
00:18:54]} {[%emt 00:00:08]} 11. Kxd2 {[%clk 00:16:17]} {[%emt 00:00:32]} Bxf3
{[%clk 00:18:35]} {[%emt 00:00:24]} 12. Rhe1+ {[%clk 00:14:57]} {[%emt
00:01:25]} Kf8 {[%clk 00:17:39]} {[%emt 00:01:01]} 13. gxf3 {[%clk 00:13:57]}
{[%emt 00:01:05]} dxc4 {[%clk 00:16:54]} {[%emt 00:00:49]} 14. Qxc4 {[%clk
00:13:27]} {[%emt 00:00:35]} Qxd4 {[%clk 00:16:35]} {[%emt 00:00:25]} 15. Qxd4
{[%clk 00:12:20]} {[%emt 00:01:11]} Nxd4 {[%clk 00:16:38]} {[%emt 00:00:02]} 16.
Be4 {[%clk 00:11:53]} {[%emt 00:00:32]} c6 {[%clk 00:16:39]} {[%emt 00:00:05]}
17. Ke3 {[%clk 00:11:24]} {[%emt 00:00:34]} Ne6 {[%clk 00:16:25]} {[%emt
00:00:19]} 18. Rad1 {[%clk 00:11:04]} {[%emt 00:00:25]} Ke7 {[%clk 00:14:19]}
{[%emt 00:02:11]} 19. b4 {[%clk 00:10:32]} {[%emt 00:00:36]} g6 {[%clk
00:13:40]} {[%emt 00:00:45]} 20. b5 {[%clk 00:09:51]} {[%emt 00:00:46]} cxb5
{[%clk 00:09:50]} {[%emt 00:03:55]} 21. Bxb7 {[%clk 00:09:38]} {[%emt
00:00:18]} Rab8 {[%clk 00:09:13]} {[%emt 00:00:41]} 22. Bc6 {[%clk 00:08:01]}
{[%emt 00:01:42]} Rhd8 {[%clk 00:09:05]} {[%emt 00:00:13]} 23. f4 {[%clk
00:05:07]} {[%emt 00:02:59]} Rd6 {[%clk 00:07:44]} {[%emt 00:01:26]} 24. Rc1
{[%clk 00:04:21]} {[%emt 00:00:51]} Kf6 {[%clk 00:06:42]} {[%emt 00:01:07]} 25.
Red1 {[%clk 00:03:53]} {[%emt 00:00:33]} Rxd1 {[%clk 00:05:50]} {[%emt
00:00:58]} 26. Rxd1 {[%clk 00:03:53]} {[%emt 00:00:04]} Rb6 {[%clk 00:05:45]}
{[%emt 00:00:11]} 27. Bg2 {[%clk 00:02:24]} {[%emt 00:01:33]} b4 {[%clk
00:05:00]} {[%emt 00:00:50]} 28. Rd7 {[%clk 00:02:10]} {[%emt 00:00:19]} a5
{[%clk 00:03:52]} {[%emt 00:01:13]} 29. Ra7 {[%clk 00:01:56]} {[%emt 00:00:19]}
b3 {[%clk 00:03:43]} {[%emt 00:00:15]} 30. axb3 {[%clk 00:01:55]} {[%emt
00:00:06]} Rxb3+ {[%clk 00:03:44]} {[%emt 00:00:04]} 31. Ke4 {[%clk 00:01:37]}
{[%emt 00:00:22]} Rb4+ {[%clk 00:03:48]} {[%emt 00:00:02]} 32. Ke3 {[%clk
00:01:31]} {[%emt 00:00:10]} a4 {[%clk 00:02:54]} {[%emt 00:01:00]} 33. Bc6
{[%clk 00:01:32]} {[%emt 00:00:04]} Rb3+ {[%clk 00:01:52]} {[%emt 00:01:06]} 34.
Kd2 {[%clk 00:01:15]} {[%emt 00:00:23]} a3 {[%clk 00:01:37]} {[%emt 00:00:20]}
35. Be8 {[%clk 00:00:40]} {[%emt 00:00:39]} Nd8 {[%clk 00:01:29]} {[%emt
00:00:13]} 36. Kc2 {[%clk 00:00:26]} {[%emt 00:00:19]} Rb2+ {[%clk 00:00:56]}
{[%emt 00:00:39]} 37. Kc3 {[%clk 00:00:29]} {[%emt 00:00:02]} Rxf2 {[%clk
00:00:57]} {[%emt 00:00:03]} 38. Kb4 {[%clk 00:00:26]} {[%emt 00:00:07]} a2
{[%clk 00:00:44]} {[%emt 00:00:19]} 39. Kb3 {[%clk 00:00:24]} {[%emt 00:00:07]}
Rxh2 {[%clk 00:00:46]} {[%emt 00:00:03]} 40. Bd7 {[%clk 00:00:08]} {[%emt
00:00:21]} Rd2 {[%clk 00:00:39]} {[%emt 00:00:11]} 41. Bc8 {[%clk 00:00:11]}
{[%emt 00:00:03]} h5 {[%clk 00:00:36]} {[%emt 00:00:09]} 42. Ra6+ {[%clk
00:00:15]} {[%emt 00:00:01]} Ne6 {[%clk 00:00:30]} {[%emt 00:00:11]} 43. Rxa2
{[%emt 00:00:13]} Rxa2 {[%clk 00:00:34]} 44. Kxa2 {[%clk 00:00:11]} Nxf4 {[%clk
00:00:33]} {[%emt 00:00:07]} 45. Kb3 {[%clk 00:00:13]} {[%emt 00:00:02]} h4
{[%clk 00:00:37]} 46. Kc3 {[%clk 00:00:14]} {[%emt 00:00:03]} h3 {[%clk
00:00:36]} {[%emt 00:00:06]} 47. Kd2 {[%clk 00:00:18]} {[%emt 00:00:01]} h2
{[%clk 00:00:33]} {[%emt 00:00:08]} 48. Bb7 {[%clk 00:00:22]} g5 {[%clk
00:00:31]} {[%emt 00:00:08]} 49. Ke3 {[%clk 00:00:18]} {[%emt 00:00:09]} Kf5
{[%clk 00:00:26]} {[%emt 00:00:11]} 50. Kf2 {[%clk 00:00:18]} {[%emt 00:00:03]}
g4 {[%clk 00:00:14]} {[%emt 00:00:18]} 51. Kg3 {[%clk 00:00:18]} {[%emt
00:00:05]} Nh5+ {[%clk 00:00:10]} {[%emt 00:00:10]} 52. Kxh2 {[%clk 00:00:21]}
{[%emt 00:00:01]} Kf4 {[%clk 00:00:14]} 53. Bc6 {[%clk 00:00:17]} {[%emt
00:00:09]} f5 {[%clk 00:00:12]} {[%emt 00:00:08]} 54. Kg2 {[%clk 00:00:19]}
{[%emt 00:00:03]} Nf6 {[%clk 00:00:12]} {[%emt 00:00:05]} 55. Bb5 {[%clk
00:00:10]} {[%emt 00:00:13]} Ne4 {[%clk 00:00:11]} {[%emt 00:00:06]} 56. Bc6
{[%clk 00:00:12]} {[%emt 00:00:03]} Ke5 {[%clk 00:00:14]} {[%emt 00:00:03]} 57.
Bd7 {[%clk 00:00:14]} {[%emt 00:00:03]} Nf6 {[%clk 00:00:18]} 58. Bc8 {[%clk
00:00:17]} {[%emt 00:00:02]} f4 {[%clk 00:00:21]} {[%emt 00:00:02]} 59. Kf2
{[%clk 00:00:14]} {[%emt 00:00:07]} Ke4 {[%clk 00:00:22]} {[%emt 00:00:04]} 60.
Bb7+ {[%clk 00:00:12]} {[%emt 00:00:08]} Nd5 {[%clk 00:00:25]} {[%emt
00:00:01]} 61. Ba8 {[%clk 00:00:14]} {[%emt 00:00:04]} g3+ {[%clk 00:00:12]}
{[%emt 00:00:18]} 62. Kf1 {[%clk 00:00:14]} {[%emt 00:00:04]} Kd4 {[%clk
00:00:13]} {[%emt 00:00:04]} 63. Kg2 {[%clk 00:00:15]} {[%emt 00:00:04]} Ne7
{[%clk 00:00:09]} {[%emt 00:00:09]} 64. Kf3 {[%clk 00:00:11]} {[%emt 00:00:09]}
Ke5 {[%clk 00:00:13]} 65. Ke2 {[%clk 00:00:10]} {[%emt 00:00:06]} Nf5 {[%clk
00:00:16]} {[%emt 00:00:02]} 66. Kd3 {[%clk 00:00:07]} {[%emt 00:00:08]} Nh4
{[%clk 00:00:18]} {[%emt 00:00:04]} 67. Ke2 {[%clk 00:00:10]} {[%emt 00:00:02]}
Kd4 {[%clk 00:00:13]} {[%emt 00:00:09]} 68. Kf1 {[%clk 00:00:07]} {[%emt
00:00:08]} Ke3 {[%clk 00:00:14]} {[%emt 00:00:04]} 69. Bb7 {[%clk 00:00:10]}
{[%emt 00:00:02]} f3 {[%clk 00:00:12]} {[%emt 00:00:07]} 70. Bc6 {[%clk
00:00:09]} {[%emt 00:00:06]} Ng6 {[%clk 00:00:11]} {[%emt 00:00:06]} 71. Bd5
{[%clk 00:00:10]} {[%emt 00:00:04]} Nf4 {[%clk 00:00:15]} 72. Bc6 {[%clk
00:00:14]} {[%emt 00:00:02]} g2+ {[%clk 00:00:19]} 73. Kg1 {[%clk 00:00:15]}
{[%emt 00:00:04]} Ne2+ {[%clk 00:00:18]} {[%emt 00:00:06]} 74. Kh2 {[%clk
00:00:18]} {[%emt 00:00:02]} g1=Q+ {[%clk 00:00:22]} {[%emt 00:00:01]} 0-1



[ePGN "0.1;DGT LiveChess/2.2.6"]

[Event "MČR juniorů a juniorek v rapid šachu 2024"]
[Site "Hotel Fit Fun, Harrachov, Czech Republic"]
[Date "2024.09.21"]
[Round "2.20"]
[White "Boff Vojtech"]
[Black "Slaby Matej"]
[Result "1/2-1/2"]
[TimeControl "20+5"]
[WhiteFideId "23733969"]
[BlackFideId "23734876"]
[WhiteElo "1719"]
[BlackElo "1948"]

1. d4 {[%clk 00:20:07]} {[%emt 00:00:02]} Nf6 {[%clk 00:20:07]} {[%emt
00:00:03]} 2. Nf3 {[%clk 00:20:09]} {[%emt 00:00:02]} e6 {[%clk 00:20:08]}
{[%emt 00:00:05]} 3. c4 {[%clk 00:20:13]} {[%emt 00:00:01]} Bb4+ {[%clk
00:20:12]} {[%emt 00:00:01]} 4. Nbd2 {[%clk 00:20:13]} {[%emt 00:00:06]} c5
{[%clk 00:20:09]} {[%emt 00:00:08]} 5. a3 {[%clk 00:20:13]} {[%emt 00:00:05]}
Bxd2+ {[%clk 00:19:55]} {[%emt 00:00:18]} 6. Bxd2 {[%clk 00:20:11]} {[%emt
00:00:07]} cxd4 {[%clk 00:19:54]} {[%emt 00:00:06]} 7. Nxd4 {[%clk 00:20:14]}
{[%emt 00:00:02]} d5 {[%clk 00:19:51]} {[%emt 00:00:08]} 8. cxd5 {[%clk
00:20:01]} {[%emt 00:00:18]} Qxd5 {[%clk 00:19:42]} {[%emt 00:00:14]} 9. Bc3
{[%clk 00:20:02]} {[%emt 00:00:04]} Ne4 {[%clk 00:18:36]} {[%emt 00:01:11]} 10.
Rc1 {[%clk 00:19:13]} {[%emt 00:00:54]} O-O {[%clk 00:17:57]} {[%emt 00:00:44]}
11. e3 {[%clk 00:18:27]} {[%emt 00:00:50]} Nxc3 {[%clk 00:17:51]} {[%emt
00:00:12]} 12. Rxc3 {[%clk 00:18:29]} {[%emt 00:00:02]} Bd7 {[%clk 00:17:31]}
{[%emt 00:00:26]} 13. Qf3 {[%clk 00:18:20]} {[%emt 00:00:14]} Qxf3 {[%clk
00:17:11]} {[%emt 00:00:26]} 14. Nxf3 {[%clk 00:18:22]} {[%emt 00:00:02]} Nc6
{[%clk 00:17:15]} {[%emt 00:00:02]} 15. Bd3 {[%clk 00:18:02]} {[%emt 00:00:24]}
Rfd8 {[%clk 00:16:24]} {[%emt 00:00:57]} 16. Ke2 {[%clk 00:17:27]} {[%emt
00:00:39]} Be8 {[%clk 00:15:29]} {[%emt 00:01:00]} 17. Rd1 {[%clk 00:16:35]}
{[%emt 00:00:57]} f6 {[%clk 00:15:15]} {[%emt 00:00:20]} 18. Bc4 {[%clk
00:16:19]} {[%emt 00:00:21]} Bf7 {[%clk 00:15:12]} {[%emt 00:00:08]} 19. Rcd3
{[%clk 00:16:16]} {[%emt 00:00:07]} e5 {[%clk 00:15:06]} {[%emt 00:00:11]} 20.
Bxf7+ {[%clk 00:16:18]} {[%emt 00:00:04]} Kxf7 {[%clk 00:15:08]} {[%emt
00:00:02]} 21. Rd7+ {[%clk 00:16:21]} {[%emt 00:00:02]} Kf8 {[%clk 00:14:13]}
{[%emt 00:01:01]} 22. Rxb7 {[%clk 00:16:22]} {[%emt 00:00:04]} Rxd1 {[%clk
00:13:20]} {[%emt 00:00:58]} 23. Kxd1 {[%clk 00:16:25]} Rd8+ {[%clk 00:13:24]}
24. Ke2 {[%clk 00:15:48]} {[%emt 00:00:42]} a5 {[%clk 00:11:55]} {[%emt
00:01:35]} 25. b4 {[%clk 00:15:20]} {[%emt 00:00:32]} axb4 26. axb4 {[%clk
00:15:24]} Ra8 {[%clk 00:11:15]} 27. Nd2 {[%clk 00:14:54]} {[%emt 00:00:34]}
Ra4 {[%clk 00:10:38]} {[%emt 00:00:42]} 28. b5 {[%clk 00:14:51]} {[%emt
00:00:08]} Nd8 {[%clk 00:10:24]} {[%emt 00:00:19]} 29. Rd7 {[%clk 00:14:13]}
{[%emt 00:00:44]} Ne6 {[%clk 00:10:02]} {[%emt 00:00:28]} 30. b6 {[%clk
00:13:54]} {[%emt 00:00:24]} Rb4 {[%clk 00:10:05]} 31. Rd6 {[%clk 00:13:48]}
{[%emt 00:00:11]} Ke7 {[%clk 00:10:02]} {[%emt 00:00:08]} 32. Rc6 {[%clk
00:13:51]} {[%emt 00:00:02]} Kd7 {[%clk 00:10:01]} {[%emt 00:00:06]} 33. Rc4
{[%clk 00:13:29]} {[%emt 00:00:28]} Rxb6 {[%clk 00:10:05]} {[%emt 00:00:01]} 34.
Rh4 {[%clk 00:13:19]} {[%emt 00:00:14]} h6 {[%clk 00:09:53]} {[%emt 00:00:17]}
35. Ra4 {[%clk 00:13:18]} {[%emt 00:00:06]} Rb7 {[%clk 00:07:17]} {[%emt
00:02:41]} 36. Ra2 {[%clk 00:12:05]} {[%emt 00:01:18]} Rc7 {[%clk 00:07:07]}
{[%emt 00:00:16]} 37. Ne4 {[%clk 00:11:06]} {[%emt 00:01:03]} f5 {[%clk
00:06:57]} {[%emt 00:00:14]} 38. Rd2+ {[%clk 00:10:49]} {[%emt 00:00:23]} Ke7
{[%clk 00:06:52]} {[%emt 00:00:09]} 39. Nd6 {[%clk 00:10:47]} {[%emt 00:00:08]}
g6 {[%clk 00:06:56]} {[%emt 00:00:02]} 40. Nb5 {[%clk 00:10:29]} {[%emt
00:00:23]} Rb7 {[%clk 00:06:32]} {[%emt 00:00:28]} 41. Nc3 {[%clk 00:10:27]}
{[%emt 00:00:07]} Nc5 {[%clk 00:06:10]} {[%emt 00:00:27]} 42. Rd5 {[%clk
00:09:29]} {[%emt 00:01:03]} Rb2+ {[%clk 00:06:07]} {[%emt 00:00:08]} 43. Rd2
{[%clk 00:09:08]} {[%emt 00:00:27]} Rxd2+ {[%clk 00:06:02]} {[%emt 00:00:10]}
44. Kxd2 {[%clk 00:09:12]} {[%emt 00:00:01]} Ke6 {[%clk 00:06:06]} {[%emt
00:00:01]} 45. Ke2 {[%clk 00:08:58]} {[%emt 00:00:19]} g5 {[%clk 00:06:03]}
{[%emt 00:00:07]} 46. f3 {[%clk 00:08:51]} {[%emt 00:00:12]} h5 {[%clk
00:05:53]} {[%emt 00:00:16]} 47. e4 {[%clk 00:08:53]} {[%emt 00:00:02]} g4
{[%clk 00:05:52]} {[%emt 00:00:06]} 48. exf5+ {[%clk 00:08:11]} {[%emt
00:00:48]} Kxf5 {[%clk 00:05:55]} {[%emt 00:00:02]} 49. Nd1 {[%clk 00:08:12]}
{[%emt 00:00:04]} Ne6 {[%clk 00:05:38]} {[%emt 00:00:22]} 50. Ne3+ {[%clk
00:08:10]} {[%emt 00:00:06]} Kg5 {[%clk 00:05:42]} 51. Nc4 {[%clk 00:08:06]}
{[%emt 00:00:10]} Nd4+ {[%clk 00:05:20]} {[%emt 00:00:28]} 52. Ke3 {[%clk
00:07:47]} {[%emt 00:00:23]} gxf3 {[%clk 00:05:15]} {[%emt 00:00:11]} 53. gxf3
{[%clk 00:07:45]} {[%emt 00:00:06]} Kf5 {[%clk 00:04:48]} {[%emt 00:00:32]} 54.
Nd6+ {[%clk 00:07:44]} {[%emt 00:00:06]} Ke6 {[%clk 00:04:52]} {[%emt
00:00:01]} 55. Ne8 {[%clk 00:07:14]} {[%emt 00:00:36]} Nf5+ {[%clk 00:04:50]}
{[%emt 00:00:07]} 56. Ke4 {[%clk 00:07:07]} {[%emt 00:00:12]} h4 {[%clk
00:04:36]} {[%emt 00:00:19]} 57. Nc7+ {[%clk 00:07:10]} {[%emt 00:00:02]} Kf6
{[%clk 00:04:21]} {[%emt 00:00:17]} 58. Nd5+ {[%clk 00:07:13]} {[%emt
00:00:04]} Ke6 {[%clk 00:04:15]} {[%emt 00:00:11]} 59. Nc7+ {[%clk 00:07:05]}
{[%emt 00:00:13]} Kf6 {[%clk 00:04:19]} 60. Nd5+ {[%clk 00:07:07]} {[%emt
00:00:02]} Ke6 {[%emt 00:00:02]} 1/2-1/2



[ePGN "0.1;DGT LiveChess/2.2.6"]

[Event "MČR juniorů a juniorek v rapid šachu 2024"]
[Site "Hotel Fit Fun, Harrachov, Czech Republic"]
[Date "2024.09.21"]
[Round "2.21"]
[White "Martinkovic Adam"]
[Black "Andrle Filip"]
[Result "1/2-1/2"]
[TimeControl "20+5"]
[WhiteFideId "23728019"]
[BlackFideId "23718749"]
[WhiteElo "1841"]
[BlackElo "1789"]

1. d4 {[%clk 00:20:07]} {[%emt 00:00:02]} Nf6 {[%clk 00:20:06]} {[%emt
00:00:04]} 2. Nf3 {[%clk 00:20:09]} {[%emt 00:00:03]} e6 {[%clk 00:19:56]}
{[%emt 00:00:15]} 3. c4 {[%clk 00:19:47]} {[%emt 00:00:27]} Bb4+ {[%clk
00:19:57]} {[%emt 00:00:04]} 4. Bd2 {[%clk 00:19:48]} {[%emt 00:00:04]} Qe7
{[%clk 00:19:59]} {[%emt 00:00:03]} 5. a3 {[%clk 00:19:37]} {[%emt 00:00:17]}
Bxd2+ {[%clk 00:19:58]} {[%emt 00:00:05]} 6. Nbxd2 {[%clk 00:19:36]} {[%emt
00:00:06]} d5 {[%clk 00:19:18]} {[%emt 00:00:45]} 7. g3 {[%clk 00:19:21]}
{[%emt 00:00:20]} b6 {[%clk 00:18:58]} {[%emt 00:00:25]} 8. Bg2 {[%clk
00:19:16]} {[%emt 00:00:10]} Bb7 {[%clk 00:18:58]} {[%emt 00:00:04]} 9. Ne5
{[%clk 00:18:08]} {[%emt 00:01:13]} Nbd7 {[%clk 00:18:43]} {[%emt 00:00:19]} 10.
f4 {[%clk 00:17:33]} {[%emt 00:00:41]} O-O {[%clk 00:18:19]} {[%emt 00:00:28]}
11. O-O {[%clk 00:16:55]} {[%emt 00:00:43]} Nxe5 {[%clk 00:17:52]} {[%emt
00:00:32]} 12. fxe5 {[%clk 00:16:29]} {[%emt 00:00:32]} Ng4 {[%clk 00:17:47]}
{[%emt 00:00:09]} 13. Qb3 {[%clk 00:15:59]} {[%emt 00:00:36]} Qg5 {[%clk
00:16:59]} {[%emt 00:00:53]} 14. Rf4 {[%clk 00:15:40]} {[%emt 00:00:23]} dxc4
{[%clk 00:15:26]} {[%emt 00:01:39]} 15. Nxc4 {[%clk 00:14:35]} {[%emt
00:01:11]} Bxg2 {[%clk 00:15:12]} {[%emt 00:00:18]} 16. Kxg2 {[%clk 00:14:36]}
{[%emt 00:00:03]} c5 {[%clk 00:13:42]} {[%emt 00:01:36]} 17. Qf3 {[%clk
00:12:06]} {[%emt 00:02:35]} Nh6 {[%clk 00:12:43]} {[%emt 00:01:03]} 18. e3
{[%clk 00:06:13]} {[%emt 00:05:59]} cxd4 {[%clk 00:12:24]} {[%emt 00:00:24]} 19.
exd4 {[%clk 00:06:08]} {[%emt 00:00:10]} Rac8 {[%clk 00:12:26]} {[%emt
00:00:03]} 20. b3 {[%clk 00:05:19]} {[%emt 00:00:55]} Nf5 {[%clk 00:08:59]}
{[%emt 00:03:31]} 21. Rg4 {[%clk 00:03:34]} {[%emt 00:01:50]} Qe7 {[%clk
00:08:27]} {[%emt 00:00:36]} 22. Ne3 {[%clk 00:02:55]} {[%emt 00:00:45]} Nxe3+
{[%clk 00:06:49]} {[%emt 00:01:43]} 23. Qxe3 {[%clk 00:02:56]} {[%emt
00:00:04]} Rc2+ {[%clk 00:05:17]} {[%emt 00:01:37]} 24. Kg1 {[%clk 00:02:13]}
{[%emt 00:00:48]} Qb7 {[%clk 00:05:10]} {[%emt 00:00:11]} 25. Rxg7+ {[%clk
00:01:58]} {[%emt 00:00:22]} Kxg7 {[%clk 00:04:08]} {[%emt 00:01:07]} 26. Qg5+
{[%clk 00:02:00]} {[%emt 00:00:02]} 1/2-1/2



[ePGN "0.1;DGT LiveChess/2.2.6"]

[Event "MČR juniorů a juniorek v rapid šachu 2024"]
[Site "Hotel Fit Fun, Harrachov, Czech Republic"]
[Date "2024.09.21"]
[Round "2.22"]
[White "Jun Rostislav"]
[Black "Jun Rudolf"]
[Result "0-1"]
[TimeControl "20+5"]
[WhiteFideId "23719524"]
[BlackFideId "376612"]
[WhiteElo "1641"]
[BlackElo "2142"]

1. e4 {[%clk 00:20:07]} {[%emt 00:00:02]} c5 {[%clk 00:20:09]} {[%emt
00:00:02]} 2. Nf3 {[%clk 00:20:11]} {[%emt 00:00:01]} Nc6 {[%clk 00:20:13]}
{[%emt 00:00:02]} 3. d4 {[%clk 00:20:12]} {[%emt 00:00:04]} cxd4 {[%clk
00:20:16]} {[%emt 00:00:02]} 4. Nxd4 {[%clk 00:20:15]} {[%emt 00:00:01]} Nf6
{[%clk 00:20:20]} {[%emt 00:00:01]} 5. Nc3 {[%clk 00:20:17]} {[%emt 00:00:03]}
e5 {[%clk 00:20:23]} {[%emt 00:00:02]} 6. Ndb5 {[%clk 00:20:18]} {[%emt
00:00:04]} d6 {[%clk 00:20:27]} {[%emt 00:00:02]} 7. Bg5 {[%clk 00:20:17]}
{[%emt 00:00:06]} a6 {[%clk 00:20:31]} 8. Na3 {[%clk 00:20:18]} {[%emt
00:00:03]} b5 {[%clk 00:20:35]} 9. Nd5 {[%clk 00:20:20]} {[%emt 00:00:04]} Be7
{[%clk 00:20:39]} 10. Bxf6 {[%clk 00:20:13]} {[%emt 00:00:12]} Bxf6 {[%clk
00:20:42]} {[%emt 00:00:01]} 11. c3 {[%clk 00:20:15]} {[%emt 00:00:04]} O-O
{[%clk 00:20:42]} {[%emt 00:00:04]} 12. Nc2 {[%clk 00:20:05]} {[%emt 00:00:15]}
Bg5 {[%clk 00:20:46]} 13. Be2 {[%clk 00:19:41]} {[%emt 00:00:29]} Be6 {[%clk
00:20:49]} {[%emt 00:00:03]} 14. O-O {[%clk 00:19:36]} {[%emt 00:00:09]} g6
{[%clk 00:20:41]} {[%emt 00:00:12]} 15. Bf3 {[%clk 00:19:07]} {[%emt 00:00:35]}
Ne7 {[%clk 00:20:36]} {[%emt 00:00:11]} 16. Nxe7+ {[%clk 00:18:55]} {[%emt
00:00:17]} Qxe7 {[%clk 00:20:27]} {[%emt 00:00:13]} 17. Nb4 {[%clk 00:18:56]}
{[%emt 00:00:05]} a5 {[%clk 00:20:12]} {[%emt 00:00:20]} 18. Nd5 {[%clk
00:18:58]} {[%emt 00:00:02]} Qb7 {[%clk 00:20:13]} {[%emt 00:00:05]} 19. Re1
{[%clk 00:18:39]} {[%emt 00:00:24]} Bxd5 {[%clk 00:20:17]} {[%emt 00:00:01]} 20.
exd5 {[%clk 00:18:42]} {[%emt 00:00:02]} f5 {[%clk 00:20:20]} 21. Be2 {[%clk
00:18:38]} {[%emt 00:00:09]} b4 {[%clk 00:19:43]} {[%emt 00:00:43]} 22. c4
{[%clk 00:18:29]} {[%emt 00:00:14]} Qb6 {[%clk 00:19:39]} {[%emt 00:00:09]} 23.
b3 {[%clk 00:18:26]} {[%emt 00:00:07]} e4 {[%clk 00:19:35]} {[%emt 00:00:09]}
24. Qc2 {[%clk 00:17:21]} {[%emt 00:01:10]} Qc5 {[%clk 00:19:24]} {[%emt
00:00:17]} 25. Qd1 {[%clk 00:15:40]} {[%emt 00:01:46]} Bh4 {[%clk 00:19:18]}
{[%emt 00:00:10]} 26. g3 {[%clk 00:15:07]} {[%emt 00:00:38]} Bf6 {[%clk
00:19:22]} {[%emt 00:00:01]} 27. Rb1 {[%clk 00:14:43]} {[%emt 00:00:29]} f4
{[%clk 00:19:25]} {[%emt 00:00:02]} 28. Bf1 {[%clk 00:13:56]} {[%emt 00:00:52]}
fxg3 {[%clk 00:19:17]} {[%emt 00:00:13]} 29. hxg3 {[%clk 00:13:58]} {[%emt
00:00:03]} Bd4 {[%clk 00:19:20]} {[%emt 00:00:02]} 30. Rxe4 {[%clk 00:13:19]}
{[%emt 00:00:44]} Bxf2+ {[%clk 00:19:22]} {[%emt 00:00:03]} 31. Kh1 {[%clk
00:11:02]} {[%emt 00:02:22]} Rae8 {[%clk 00:18:11]} {[%emt 00:01:16]} 32. Qg4
{[%clk 00:10:41]} {[%emt 00:00:27]} Rxe4 {[%clk 00:17:36]} {[%emt 00:00:40]} 33.
Qxe4 {[%clk 00:10:44]} {[%emt 00:00:02]} Bxg3 {[%clk 00:14:23]} {[%emt
00:03:18]} 34. Bh3 {[%clk 00:07:17]} {[%emt 00:03:31]} Be5 {[%clk 00:14:13]}
{[%emt 00:00:15]} 35. Rg1 {[%clk 00:06:39]} {[%emt 00:00:43]} Kg7 {[%clk
00:14:16]} {[%emt 00:00:03]} 36. Bf5 {[%clk 00:03:30]} {[%emt 00:03:14]} Rxf5
{[%clk 00:14:18]} {[%emt 00:00:03]} 0-1



[ePGN "0.1;DGT LiveChess/2.2.6"]